[Event "Fagernes Chess GM-Swiss 2025"]
[Site "Fagernes"]
[Date "2025.04.20"]
[Round "9.29"]
[White "Haugen, Lars Tormod"]
[Black "Gasland, Lukas Dominik"]
[Result "1/2-1/2"]
[Annotator "NA"]
[ECO "B90"]
[WhiteElo "1988"]
[BlackElo "1994"]
[PlyCount "72"]
[EventDate "2025.04.12"]
[EventCountry "NOR"]
[SourceTitle "playchess.com"]
[Source "ChessBase"]
[SourceQuality "1"]
[TimeControl "40/6000+30:2400+30"]

1. e4 {[%emt 0:06:28]} c5 {[%emt 0:01:09]} 2. Nf3 {[%emt 0:00:23]} d6 {[%emt 0:00:10]} 3. d4 {[%emt 0:00:37]} cxd4 {[%emt 0:00:08]} 4. Nxd4 {[%emt 0:00:06]} Nf6 {[%emt 0:00:06]} 5. Nc3 {[%emt 0:00:04]} a6 {[%emt 0:00:07]} 6. h3 {[%emt 0:01:02]} e5 {[%emt 0:01:36]} 7. Nf3 {[%emt 0:00:39]} Be6 {[%emt 0:02:10]} 8. Ng5 {[%emt 0:07:26]} Be7 {[%emt 0:07:45]} 9. Nxe6 {[%emt 0:00:08]} fxe6 {[%emt 0:00:07]} 10. Bc4 {[%emt 0:00:05]} Qc8 {[%emt 0:00:12]} 11. Bb3 {[%emt 0:06:13]} O-O {[%emt 0:03:30]} 12. g4 {[%emt 0:12:51]} Nc6 {[%emt 0:08:38]} 13. g5 {[%emt 0:10:47]} Ne8 {[%emt 0:08:13]} 14. Be3 {[%emt 0:01:58]} Nd4 {[%emt 0:10:23]} 15. Bxd4 {[%emt 0:01:26]} exd4 {[%emt 0:00:30]} 16. Qg4 {[%emt 0:01:45]} d5 {[%emt 0:10:49]} 17. Ne2 {[%emt 0:13:07]} Bb4+ {[%emt 0:12:45]} 18. Kf1 {[%emt 0:01:16]} Nd6 {[%emt 0:00:35]} 19. exd5 {[%emt 0:05:01]} e5 {[%emt 0:00:40]} 20. c3 {[%emt 0:07:39]} Qxg4 {[%emt 0:09:38]} 21. hxg4 {[%emt 0:00:10]} Bc5 {[%emt 0:01:31]} 22. cxd4 {[%emt 0:06:09]} exd4 {[%emt 0:01:14]} 23. Bc2 {[%emt 0:05:48]} g6 {[%emt 0:02:52]} 24. Rc1 {[%emt 0:11:13]} Rac8 {[%emt 0:04:33]} 25. Bd3 {[%emt 0:00:45]} Rf3 {[%emt 0:01:13]} 26. b4 {[%emt 0:05:01]} Bb6 {[%emt 0:08:11]} 27. Rxc8+ {[%emt 0:00:31]} Nxc8 {[%emt 0:00:05]} 28. Nc1 {[%emt 0:01:29]} Nd6 {[%emt 0:04:46]} 29. Ke2 {[%emt 0:00:22]} Rf8 {[%emt 0:01:04]} 30. Nb3 {[%emt 0:01:32]} Re8+ {[%emt 0:00:59]} 31. Kd2 {[%emt 0:01:10]} Re5 {[%emt 0:01:32]} 32. f4 {[%emt 0:01:06]} Rxd5 {[%emt 0:01:25]} 33. Re1 {[%emt 0:00:05]} Kf7 {[%emt 0:03:35]} 34. Rh1 {[%emt 0:01:06]} Kg7 {[%emt 0:00:19]} 35. Re1 {[%emt 0:00:19]} Kf7 {[%emt 0:00:33]} 36. Rh1 {[%emt 0:00:27]} Kg7 {[%emt 0:00:07]} 1/2-1/2

[Event "Fagernes Chess GM-Swiss 2025"]
[Site "Fagernes"]
[Date "2025.04.20"]
[Round "9.30"]
[White "Hausken, Andreas Skrede"]
[Black "Kaewpitakkun, Pantham"]
[Result "1/2-1/2"]
[Annotator "NA"]
[ECO "B22"]
[WhiteElo "2002"]
[BlackElo "2026"]
[PlyCount "24"]
[EventDate "2025.04.12"]
[EventCountry "NOR"]
[SourceTitle "playchess.com"]
[Source "ChessBase"]
[SourceQuality "1"]
[TimeControl "40/6000+30:2400+30"]

1. e4 {[%emt 0:18:20]} c5 {[%emt 0:00:06]} 2. c3 {[%emt 0:00:04]} Nf6 {[%emt 0:00:06]} 3. e5 {[%emt 0:00:03]} Nd5 {[%emt 0:00:09]} 4. Nf3 {[%emt 0:00:03]} Nc6 {[%emt 0:00:13]} 5. Bc4 {[%emt 0:00:03]} Nb6 {[%emt 0:00:36]} 6. Bb3 {[%emt 0:00:05]} d5 {[%emt 0:02:18]} 7. exd6 {[%emt 0:00:03]} Qxd6 {[%emt 0:00:09]} 8. O-O {[%emt 0:00:06]} c4 {[%emt 0:00:12]} 9. Bc2 {[%emt 0:00:01]} Bg4 {[%emt 0:00:56]} 10. h3 {[%emt 0:00:23]} Bh5 {[%emt 0:01:56]} 11. Re1 {[%emt 0:00:17]} e6 {[%emt 0:03:35]} 12. b3 {[%emt 0:00:29]} Be7 {[%emt 0:04:48]} 1/2-1/2

[Event "Fagernes Chess GM-Swiss 2025"]
[Site "Fagernes"]
[Date "2025.04.20"]
[Round "9.31"]
[White "Wernberg, Nikolai Olsen"]
[Black "Arvola, Daniel"]
[Result "0-1"]
[Annotator "NA"]
[ECO "A34"]
[WhiteElo "1893"]
[BlackElo "2088"]
[PlyCount "74"]
[EventDate "2025.04.12"]
[EventCountry "NOR"]
[SourceTitle "playchess.com"]
[Source "ChessBase"]
[SourceQuality "1"]
[TimeControl "40/6000+30:2400+30"]

1. Nf3 {[%emt 0:00:12]} c5 {[%emt 0:00:11]} 2. g3 {[%emt 0:00:27]} Nc6 {[%emt 0:00:11]} 3. Bg2 {[%emt 0:00:34]} e5 {[%emt 0:00:14]} 4. c4 {[%emt 0:00:24]} Nf6 {[%emt 0:00:20]} 5. Nc3 {[%emt 0:00:53]} d6 {[%emt 0:01:51]} 6. O-O {[%emt 0:01:14]} Be7 {[%emt 0:00:50]} 7. d3 {[%emt 0:02:45]} O-O {[%emt 0:00:37]} 8. Bg5 {[%emt 0:07:18]} Be6 {[%emt 0:02:10]} 9. Ne1 {[%emt 0:02:32]} Nd7 {[%emt 0:08:00]} 10. Bxe7 {[%emt 0:01:01]} Qxe7 {[%emt 0:00:13]} 11. Nc2 {[%emt 0:01:41]} f5 {[%emt 0:07:49]} 12. Ne3 {[%emt 0:02:37]} a6 {[%emt 0:02:54]} 13. Ned5 {[%emt 0:02:09]} Qd8 {[%emt 0:00:11]} 14. a3 {[%emt 0:05:06]} Rb8 {[%emt 0:14:09]} 15. b4 {[%emt 0:07:15]} Ne7 {[%emt 0:03:17]} 16. Rb1 {[%emt 0:06:19]} Nxd5 {[%emt 0:03:34]} 17. Nxd5 {[%emt 0:00:27]} b5 {[%emt 0:02:43]} 18. Qc2 {[%emt 0:10:21]} Nb6 {[%emt 0:09:08]} 19. Rfc1 {[%emt 0:05:24]} Bxd5 {[%emt 0:05:42]} 20. cxd5 {[%emt 0:01:14]} c4 {[%emt 0:01:20]} 21. dxc4 {[%emt 0:03:59]} Nxc4 {[%emt 0:01:53]} 22. Rb3 {[%emt 0:02:30]} e4 {[%emt 0:02:47]} 23. e3 {[%emt 0:03:26]} Qf6 {[%emt 0:06:03]} 24. Bf1 {[%emt 0:05:02]} Ne5 {[%emt 0:00:18]} 25. Be2 {[%emt 0:01:01]} Qh6 {[%emt 0:03:03]} 26. Kg2 {[%emt 0:02:33]} g5 {[%emt 0:02:45]} 27. Rh1 {[%emt 0:01:36]} Rbc8 {[%emt 0:01:18]} 28. Qb1 {[%emt 0:01:02]} Qg6 {[%emt 0:04:03]} 29. f4 {[%emt 0:02:41]} exf3+ {[%emt 0:01:04]} 30. Bxf3 {[%emt 0:00:10]} Nc4 {[%emt 0:02:06]} 31. Rd1 {[%emt 0:03:37]} Rce8 {[%emt 0:01:15]} 32. Kf2 {[%emt 0:01:17]} Qh6 {[%emt 0:00:51]} 33. Bg2 {[%emt 0:00:52]} f4 {[%emt 0:02:15]} 34. gxf4 {[%emt 0:06:19]} gxf4 {[%emt 0:01:10]} 35. exf4 {[%emt 0:00:51]} Qxf4+ {[%emt 0:00:44]} 36. Kg1 {[%emt 0:00:21]} Ne3 {[%emt 0:01:10]} 37. Rdd3 {[%emt 0:03:01]} Qf2+ {[%emt 0:00:15]} 0-1

[Event "Fagernes Chess GM-Swiss 2025"]
[Site "Fagernes"]
[Date "2025.04.20"]
[Round "9.32"]
[White "Strand, Amund Pihl"]
[Black "Lilliehook, Victor"]
[Result "0-1"]
[Annotator "NA"]
[ECO "A17"]
[WhiteElo "1914"]
[BlackElo "1993"]
[PlyCount "50"]
[EventDate "2025.04.12"]
[EventCountry "NOR"]
[SourceTitle "playchess.com"]
[Source "ChessBase"]
[SourceQuality "1"]
[TimeControl "40/6000+30:2400+30"]

1. c4 {[%emt 0:16:52]} e6 {[%emt 0:00:03]} 2. Nc3 {[%emt 0:00:03]} d5 {[%emt 0:00:09]} 3. e3 {[%emt 0:00:06]} Nf6 {[%emt 0:00:17]} 4. Nf3 {[%emt 0:00:07]} c5 {[%emt 0:00:01]} 5. cxd5 {[%emt 0:00:21]} exd5 {[%emt 0:00:05]} 6. d4 {[%emt 0:00:06]} c4 {[%emt 0:00:17]} 7. Be2 {[%emt 0:00:52]} Bb4 {[%emt 0:00:43]} 8. O-O {[%emt 0:00:11]} O-O {[%emt 0:00:39]} 9. Qc2 {[%emt 0:00:57]} Nc6 {[%emt 0:02:02]} 10. Ne5 {[%emt 0:05:11]} Re8 {[%emt 0:08:50]} 11. f4 {[%emt 0:11:16]} Ne7 {[%emt 0:06:32]} 12. Bd2 {[%emt 0:04:51]} Bxc3 {[%emt 0:04:37]} 13. bxc3 {[%emt 0:02:25]} h5 {[%emt 0:08:43]} 14. Qd1 {[%emt 0:07:35]} h4 {[%emt 0:13:57]} 15. g4 {[%emt 0:03:18]} hxg3 {[%emt 0:02:05]} 16. hxg3 {[%emt 0:00:06]} Ne4 {[%emt 0:01:01]} 17. g4 {[%emt 0:17:34]} f6 {[%emt 0:07:06]} 18. Nxc4 {[%emt 0:05:07]} dxc4 {[%emt 0:06:00]} 19. Bxc4+ {[%emt 0:00:12]} Nd5 {[%emt 0:07:58]} 20. f5 {[%emt 0:00:42]} b6 {[%emt 0:03:07]} 21. Bc1 {[%emt 0:10:00]} Bb7 {[%emt 0:09:12]} 22. Rf4 {[%emt 0:05:15]} Nexc3 {[%emt 0:06:28]} 23. Qf3 {[%emt 0:02:24]} Rc8 {[%emt 0:01:48]} 24. Bb3 {[%emt 0:00:17]} Ba6 {[%emt 0:02:17]} 25. e4 {[%emt 0:03:08]} Bc4 {[%emt 0:09:04]} 0-1